Workbook

Sheet 资产评估结果汇总表
A1: 资产评估结果汇总表
A2: 被评估单位名称:蚌埠市城市投资控股有限公司 评估基准日： 2018年4月3 日 | F2: 金额单位：人民币万元
A3: 项目 | C3: 账面价值 | D3: 调增后账面值 | E3: 评估价值 | F3: 增减值 | G3: 增加率%
C4: A | D4: B | E4: C | F4: D=C-B | G4: E=(C-B)/B*100%
A5: 流动资产 | B5: 1 | C5: 33.43 | D5: 33.43 | E5: 6.34 | F5: =E5-D5 -> -27.09 | G5: =F5/D5*100 -> -81.03
A6: 长期投资 | B6: 2
A7: 固定资产 | B7: 3 | C7: 5,700.61 | D7: 5,700.61 | E7: 969.97 | F7: -4,730.64 | G7: -82.98
A8: 其中:建筑物 | B8: 4 | C8: 1,293.58 | D8: 1,293.58 | E8: 146.14 | F8: -1,147.44 | G8: -88.70
A9: 机械设备 | B9: 5 | C9: 4,392.91 | D9: 4,392.91 | E9: 823.83 | F9: -3,569.08 | G9: -81.25
A10: 在建工程 | B10: 6
A11: 无形资产 | B11: 7
A12: 其中:土地使用权 | B12: 8
A13: 其他资产 | B13: 9
A14: 资产总计 | B14: 10 | C14: 5,700.61 | D14: =D5+D7 -> 5,734.04 | E14: =E5+E7 -> 976.31 | F14: =E14-D14 -> -4,757.73 | G14: =F14/D14*100 -> -82.97
A15: 流动负债 | B15: 11
A16: 长期负债 | B16: 12
A17: 负债总计 | B17: 13
A18: 净资产 | B18: 14 | C18: =C5+C7 -> 5,734.04 | D18: =D14 -> 5,734.04 | E18: =E14 -> 976.31 | F18: =E18-D18 -> -4,757.73 | G18: =F18/D18*100 -> -82.97
A19: 评估机构：安徽华亚资产评估事务所 | F19: 评估人员：崔国忠、马海燕

Sheet 流动资产--存货清查评估汇总表
A1: 流动资产--存货清查评估汇总表
A2: 被评估单位名称:蚌埠市城市投资控股有限公司 评估基准日： 2018年4月3 日 | F2: 金额单位：人民币万元
A3: 序号 | B3: 科目名称 | C3: 账面价值 | D3: 调整后账面值 | E3: 评估价值 | F3: 增值额 | G3: 增值率% | H3: 备注
B4: 编号 | C4: 名称 | D4: 型号 | E4: 厂家 | F4: 日期 | G4: 日期
A5: 3--10-1 | B5: 原材料 | C5: 270,000.00 | E5: 60,000.00 | F5: =E5-C5 -> -210,000.00 | G5: =F5/C5*100 -> -77.78
A6: 3--10-2 | B6: 材料采购（在途物资）
A7: 3--10-3 | B7: 在库低值易耗品
A8: 3--10-4 | B8: 包装物（库存物资）
A9: 3--10-5 | B9: 委托加工材料
A10: 3--10-6 | B10: 产成品（库存商品）
A11: 3--10-7 | B11: 在产品（自制半成品）
A12: 3--10-8 | B12: 分期收款发出商品
A13: 3--10-9 | B13: 在用低值易耗品 | C13: 64,331.25 | E13: 3,385.00 | F13: =E13-C13 -> -60,946.25 | G13: =F13/C13*100 -> -94.74
A14: 3--10-10 | B14: 委托代销商品
A15: 3--10-11 | B15: 受托代销商品
A16: 3--10-12 | B16: 物料用品
B17: 存货合计 | C17: 334,331.25 | E17: =SUM(E5:E16) -> 63,385.00 | F17: =E17-C17 -> -270,946.25 | G17: =F17/C17*100 -> -81.04
B18: 减：存货跌价准备
B19: 存货净额 | C19: 334,331.25 | E19: =E17 -> 63,385.00 | F19: =E19-C19 -> -270,946.25 | G19: =F19/C19*100 -> -81.04
A20: 填表人： | B20: 董学斌 | C20: 填表日期：2018年4月3日 | F20: 评估人员： 崔国忠、马海燕

Sheet 存货--原材料清查评估明细表
A1: 存货--原材料清查评估明细表
A2: 被评估单位名称:蚌埠市城市投资控股有限公司 | G2: 评估基准日：2018年4月3日 | L2: 金额单位：人民币元
A3: 序号 | B3: 名称及规格型号 | C3: 计量 单位 | D3: 账面价值 | G3: 调整后 账面值 | H3: 实际数量 | I3: 评估价值 | L3: 增值率% | M3: 备注
C4: 名称 | D4: 数量 | E4: 单位 | F4: 金额 | G4: 日期 | I4: 原值 | J4: 变现率% | K4: 金额
A5: 1 | B5: 五金材料 | F5: 270,000.00 | I5: 60,000.00 | K5: 60,000.00
A6: 2
A7: 3
A8: 4
A9: 5
A10: 6
A11: 7
A12: 8
A13: 13
A14: 14
B15: 本页小计
B16: 合计
A17: 合计 | F17: 270,000.00 | I17: 60,000.00 | K17: 60,000.00
A18: 填表人：董学斌 | D18: 填表日期：2018年4月3日 | I18: 评估人员：崔国忠、马海燕

Sheet 存货--在用低值易耗品清评估明细表
A1: 存货--在用低值易耗品清评估明细表
A2: 被评估单位名称:蚌埠市城市投资控股有限公司 | F2: 评估基准日： 2018 年4 月 3 日 | L2: 金额单位：人民币元
A3: 序号 | B3: 名称 | C3: 计量 单位 | D3: 帐面价值 | F3: 调整后 帐面值 | H3: 实际数量 | I3: 评估价值 | M3: 增值率 % | N3: 备注
D4: 数量 | E4: 金额 | I4: 单价 | J4: 成新率% | K4: 变现率% | L4: 金额
A5: 1 | B5: 接待室 | L5: =IF(H5="","",H5*I5) -> 
A6: 2 | B6: 万爱立式饮水机WA-998AI | C6: 台 | D6: 1 | E6: 56.25 | H6: 1 | I6: 5.00 | L6: 5.00
A7: 3 | B7: 木扶手人造革沙发（含茶几） | C7: 组 | D7: 3 | E7: 2,205.00 | H7: 3 | I7: 0.00 | L7: 0.00 | N7: 已坏
A8: 4 | B8: 总经理室
A9: 5 | B9: 老板桌 | C9: 张 | D9: 1 | E9: 945.00 | H9: 1 | I9: 0.00 | L9: 0.00 | N9: 已坏
A10: 6 | B10: 老板椅 | C10: 把 | D10: 1 | E10: 150.00 | H10: 1 | I10: 0.00 | L10: 0.00 | N10: 已坏
A11: 7 | B11: 六门木质文件柜 | C11: 套 | D11: 1 | E11: 1,800.00 | H11: 1 | I11: 0.00 | L11: 0.00
A12: 8 | B12: 人造革沙发（含茶几） | C12: 套 | D12: 1 | E12: 840.00 | H12: 1 | I12: 0.00 | L12: 0.00 | N12: 已坏
A13: 9 | B13: 办公椅 | C13: 把 | D13: 2 | E13: 198.00 | H13: 2 | I13: 0.00 | L13: 0.00 | N13: 已坏
A14: 10 | B14: 木质茶水矮柜 | C14: 个 | D14: 1 | E14: 146.25 | H14: 1 | I14: 0.00 | L14: 0.00 | N14: 已坏
A15: 11 | B15: 办公室（北） | N15: 已坏
A16: 12 | B16: 铁质档案柜 | C16: 组 | D16: 2 | E16: 840.00 | H16: 2 | I16: 100.00 | L16: 200.00
A17: 13 | B17: 办公桌 | C17: 张 | D17: 3 | E17: 1,023.75 | H17: 3 | I17: 0.00 | L17: 0.00 | N17: 已坏
A18: 14 | B18: 办公椅 | C18: 把 | D18: 2 | E18: 198.00 | H18: 2 | I18: 0.00 | L18: 0.00 | N18: 已坏
A19: 15 | B19: 副总经理室（北）
A20: 16 | B20: 老板桌 | C20: 张 | D20: 1 | E20: 945.00 | H20: 1 | I20: 0.00 | L20: 0.00 | N20: 已坏
A21: 17 | B21: 老板椅 | C21: 把 | D21: 1 | E21: 225.00 | H21: 1 | I21: 0.00 | L21: 0.00 | N21: 已坏
A22: 18 | B22: 木质茶水矮柜 | C22: 个 | D22: 1 | E22: 146.25 | H22: 1 | I22: 0.00 | L22: 0.00 | N22: 已坏
A23: 19 | B23: 人造革沙发（含茶几） | C23: 套 | D23: 1 | E23: 840.00 | H23: 1 | I23: 0.00 | L23: 0.00 | N23: 已坏
A24: 20 | B24: 六门木质文件柜 | C24: 套 | D24: 1 | E24: 1,800.00 | H24: 1 | I24: 200.00 | L24: 200.00
A25: 21 | B25: 单人席梦思梦 | C25: 张 | D25: 1 | E25: 840.00 | H25: 0 | L25: =IF(H25="","",H25*I25) -> 0.00 | N25: 已坏
A26: 22 | B26: 床头柜 | C26: 个 | D26: 1 | E26: 210.00 | H26: 0 | L26: 0.00 | N26: 已坏
A27: 23 | B27: 办公椅 | C27: 把 | D27: 1 | E27: 99.00 | H27: 1 | I27: 0.00 | L27: 0.00 | N27: 已坏
A28: 24 | B28: 财务科
A29: 25 | B29: 办公桌 | C29: 张 | D29: 6 | E29: 2,047.50 | H29: 6 | I29: 0.00 | L29: 0.00 | N29: 已坏
A30: 26 | B30: 办公椅 | C30: 把 | D30: 6 | E30: 594.00 | H30: 6 | I30: 0.00 | L30: 0.00 | N30: 已坏
A31: 27 | B31: 铁质档案柜 | C31: 组 | D31: 1 | E31: 420.00 | H31: 1 | I31: 100.00 | L31: 100.00
A32: 28 | B32: 财务总监室
A33: 29 | B33: 人造革沙发（含茶几） | C33: 套 | D33: 1 | E33: 840.00 | H33: 1 | I33: 0.00 | L33: 0.00 | N33: 已坏
A34: 30 | B34: 老板桌 | C34: 张 | D34: 1 | E34: 945.00 | H34: 1 | I34: 0.00 | L34: 0.00 | N34: 已坏
A35: 31 | B35: 老板椅 | C35: 把 | D35: 1 | E35: 225.00 | H35: 1 | I35: 0.00 | L35: 0.00 | N35: 已坏
A36: 32 | B36: 办公桌 | C36: 把 | D36: 1 | E36: 99.00 | H36: 1 | I36: 0.00 | L36: 0.00 | N36: 已坏
A37: 33 | B37: 六门木质文件柜 | C37: 套 | D37: 1 | E37: 1,800.00 | H37: 1 | I37: 200.00 | L37: 200.00
A38: 34 | B38: 木质茶水矮柜 | C38: 个 | D38: 1 | E38: 146.25 | H38: 1 | I38: 0.00 | L38: 0.00 | N38: 已坏
A39: 35 | B39: 副总经理室（中）
A40: 36 | B40: 老板桌 | C40: 张 | D40: 2 | E40: 1,890.00 | H40: 2 | I40: 0.00 | L40: 0.00 | N40: 已坏
A41: 37 | B41: 老板椅 | C41: 把 | D41: 2 | E41: 450.00 | H41: 2 | I41: 0.00 | L41: 0.00 | N41: 已坏
A42: 38 | B42: 木质茶水矮柜 | C42: 个 | D42: 1 | E42: 146.25 | H42: 1 | I42: 0.00 | L42: 0.00 | N42: 已坏
A43: 39 | B43: 人造革沙发（含茶几） | C43: 套 | D43: 1 | E43: 840.00 | H43: 1 | I43: 0.00 | L43: 0.00 | N43: 已坏
A44: 40 | B44: 六门木质文件柜 | C44: 套 | D44: 1 | E44: 1,800.00 | H44: 1 | I44: 200.00 | L44: 200.00
A45: 41 | B45: 保险柜 | C45: 台 | D45: 1 | E45: 187.50 | H45: 1 | I45: 100.00 | L45: =IF(H45="","",H45*I45) -> 100.00 | N45: 已坏
A46: 42 | B46: 办公椅 | C46: 把 | D46: 2 | E46: 198.00 | H46: 2 | I46: 0.00 | L46: 0.00 | N46: 已坏
A47: 43 | B47: 副总经理室（南）
A48: 44 | B48: 老板桌 | C48: 张 | D48: 1 | E48: 945.00 | H48: 1 | I48: 0.00 | L48: 0.00 | N48: 已坏
A49: 45 | B49: 老板椅 | C49: 把 | D49: 1 | E49: 225.00 | H49: 1 | I49: 0.00 | L49: 0.00 | N49: 已坏
A50: 46 | B50: 木质茶水矮柜 | C50: 个 | D50: 1 | E50: 146.25 | H50: 1 | I50: 0.00 | L50: 0.00 | N50: 已坏
A51: 47 | B51: 人造革沙发（含茶几） | C51: 套 | D51: 1 | E51: 840.00 | H51: 1 | I51: 0.00 | L51: 0.00 | N51: 已坏
A52: 48 | B52: 六门木质文件柜 | C52: 套 | D52: 1 | E52: 1,800.00 | H52: 1 | I52: 200.00 | L52: 200.00
A53: 49 | B53: 办公椅 | C53: 把 | D53: 2 | E53: 198.00 | H53: 2 | I53: 0.00 | L53: 0.00 | N53: 已坏
A54: 50 | B54: 监控室
A55: 51 | B55: 办公椅 | C55: 把 | D55: 3 | E55: 297.00 | H55: 3 | I55: 0.00 | L55: 0.00 | N55: 已坏
A56: 52 | B56: 办公桌 | C56: 张 | D56: 1 | E56: 341.25 | H56: 1 | I56: 0.00 | L56: 0.00 | N56: 已坏
A57: 53 | B57: 办公室（南） | N57: 已坏
A58: 54 | B58: 办公椅 | C58: 把 | D58: 3 | E58: 297.00 | H58: 3 | I58: 0.00 | L58: 0.00 | N58: 已坏
A59: 55 | B59: 办公桌 | C59: 张 | D59: 4 | E59: 1,365.00 | H59: 4 | I59: 0.00 | L59: 0.00 | N59: 已坏
A60: 56 | B60: 铁质档案柜 | C60: 组 | D60: 2 | E60: 840.00 | H60: 2 | I60: 100.00 | L60: 200.00
A61: 57 | B61: 生产部
A62: 58 | B62: 铁质档案柜 | C62: 组 | D62: 3 | E62: 1,260.00 | H62: 3 | I62: 100.00 | L62: 300.00
A63: 59 | B63: 办公椅 | C63: 把 | D63: 3 | E63: 297.00 | H63: 3 | I63: 0.00 | L63: 0.00 | N63: 已坏
A64: 60 | B64: 办公桌 | C64: 张 | D64: 4 | E64: 1,365.00 | H64: 4 | I64: 0.00 | L64: 0.00 | N64: 已坏
A65: 61 | B65: 小木桌 | C65: 把 | D65: 1 | E65: 15.00 | H65: 1 | I65: 0.00 | L65: =IF(H65="","",H65*I65) -> 0.00 | N65: 已坏
A66: 62 | B66: 一楼会议室
A67: 63 | B67: 大会议桌 | C67: 张 | D67: 1 | E67: 1,890.00 | H67: 1 | I67: 0.00 | L67: 0.00 | N67: 已坏
A68: 64 | B68: 会议椅 | C68: 把 | D68: 11 | E68: 858.00 | H68: 11 | I68: 0.00 | L68: 0.00 | N68: 已坏
A69: 65 | B69: 小铁圆凳 | C69: 个 | D69: 5 | E69: 33.75 | H69: 5 | I69: 5.00 | L69: 25.00
A70: 66 | B70: 财务结算室 | N70: 已坏
A71: 67 | B71: 办公桌 | C71: 张 | D71: 5 | E71: 1,706.25 | H71: 5 | I71: 0.00 | L71: 0.00 | N71: 已坏
A72: 68 | B72: 办公椅 | C72: 把 | D72: 5 | E72: 495.00 | H72: 5 | I72: 0.00 | L72: 0.00 | N72: 已坏
A73: 69 | B73: 小铁圆凳 | C73: 个 | D73: 1 | E73: 6.75 | H73: 1 | I73: 5.00 | L73: 5.00
A74: 70 | B74: 铁质档案柜 | C74: 组 | D74: 2 | E74: 840.00 | H74: 2 | I74: 100.00 | L74: 200.00 | N74: 已坏
A75: 71 | B75: 保险柜 | C75: 台 | D75: 1 | E75: 570.00 | H75: 1 | I75: 100.00 | L75: 100.00 | N75: 已坏
A76: 72 | B76: 油销售室
A77: 73 | B77: 办公椅 | C77: 把 | D77: 8 | E77: 792.00 | H77: 8 | I77: 0.00 | L77: 0.00 | N77: 已坏
A78: 74 | B78: 办公桌 | C78: 张 | D78: 8 | E78: 2,730.00 | H78: 8 | I78: 0.00 | L78: 0.00 | N78: 已坏
A79: 75 | B79: 铁质档案柜 | C79: 组 | D79: 2 | E79: 840.00 | H79: 2 | I79: 100.00 | L79: 200.00
A80: 76 | B80: 小铁圆凳 | C80: 个 | D80: 1 | E80: 6.75 | H80: 1 | I80: 5.00 | L80: 5.00
A81: 77 | B81: 粨销售部 | N81: 已坏
A82: 78 | B82: 办公椅 | C82: 把 | D82: 8 | E82: 792.00 | H82: 8 | I82: 0.00 | L82: 0.00 | N82: 已坏
A83: 79 | B83: 办公桌 | C83: 张 | D83: 7 | E83: 2,388.75 | H83: 7 | I83: 0.00 | L83: 0.00 | N83: 已坏
A84: 80 | B84: 会议椅 | C84: 把 | D84: 3 | E84: 234.00 | H84: 3 | I84: 0.00 | L84: 0.00 | N84: 已坏
A85: 81 | B85: 化验室 | L85: =IF(H85="","",H85*I85) -> 
A86: 82 | B86: 办公椅 | C86: 把 | D86: 3 | E86: 297.00 | H86: 3 | I86: 0.00 | L86: 0.00 | N86: 已坏
A87: 83 | B87: 办公桌 | C87: 张 | D87: 4 | E87: 1,365.00 | H87: 4 | I87: 0.00 | L87: 0.00 | N87: 已坏
A88: 84 | B88: 小铁圆凳 | C88: 个 | D88: 7 | E88: 47.25 | H88: 7 | I88: 5.00 | L88: 35.00
A89: 85 | B89: 椅子 | C89: 把 | D89: 3 | E89: 78.75 | H89: 3 | I89: 0.00 | L89: 0.00 | N89: 已坏
A90: 86 | B90: 采购部
A91: 87 | B91: 办公椅 | C91: 把 | D91: 9 | E91: 891.00 | H91: 9 | I91: 0.00 | L91: 0.00 | N91: 已坏
A92: 88 | B92: 办公桌 | C92: 张 | D92: 9 | E92: 3,071.25 | H92: 9 | I92: 0.00 | L92: 0.00 | N92: 已坏
A93: 89 | B93: 铁质档案柜 | C93: 组 | D93: 1 | E93: 420.00 | H93: 1 | I93: 100.00 | L93: 100.00
A94: 90 | B94: 物管部
A95: 91 | B95: 办公椅 | C95: 把 | D95: 4 | E95: 396.00 | H95: 4 | I95: 0.00 | L95: 0.00 | N95: 已坏
A96: 92 | B96: 办公桌 | C96: 张 | D96: 4 | E96: 1,365.00 | H96: 4 | I96: 0.00 | L96: 0.00 | N96: 已坏
A97: 93 | B97: 铁质档案柜 | C97: 组 | D97: 1 | E97: 420.00 | H97: 1 | I97: 100.00 | L97: 100.00
A98: 94 | B98: 椅子 | C98: 把 | D98: 1 | E98: 26.25 | H98: 1 | I98: 0.00 | L98: 0.00 | N98: 已坏
A99: 95 | B99: 司机部
A100: 96 | B100: 办公椅 | C100: 把 | D100: 2 | E100: 198.00 | H100: 2 | I100: 0.00 | L100: 0.00 | N100: 已坏
A101: 97 | B101: 办公桌 | C101: 张 | D101: 2 | E101: 682.50 | H101: 2 | I101: 0.00 | L101: 0.00 | N101: 已坏
A102: 98 | B102: 磅房
A103: 99 | B103: 电脑桌 | C103: 张 | D103: 8 | E103: 600.00 | H103: 8 | I103: 0.00 | L103: 0.00 | N103: 已坏
A104: 100 | B104: 铁质档案柜 | C104: 组 | D104: 2 | E104: 840.00 | H104: 2 | I104: 100.00 | L104: 200.00
A105: 101 | B105: 客户休息室 | L105: =IF(H105="","",H105*I105) -> 
A106: 102 | B106: 万爱立式饮水机 | C106: 台 | D106: 1 | E106: 56.25 | H106: 1 | I106: 5.00 | L106: 5.00
A107: 103 | B107: 门卫室(北)
A108: 104 | B108: 万爱立式饮水机 | C108: 台 | D108: 1 | E108: 56.25 | H108: 1 | I108: 5.00 | L108: 5.00
A109: 105 | B109: 铁质档案柜 | C109: 组 | D109: 1 | E109: 420.00 | H109: 1 | I109: 100.00 | L109: 100.00
A110: 106 | B110: 铁质档案柜 | C110: 组 | D110: 3 | E110: 1,260.00 | H110: 3 | I110: 100.00 | L110: 300.00
A111: 107 | B111: 保险柜 | C111: 个 | D111: 1 | E111: 150.00 | H111: 1 | I111: 100.00 | L111: 100.00
A112: 108 | B112: 油泵房
A113: 109 | B113: 电脑桌 | C113: 张 | D113: 1 | E113: 75.00 | H113: 1 | I113: 0.00 | L113: 0.00 | N113: 已坏
A114: 110 | B114: 铁质档案柜 | C114: 组 | D114: 1 | E114: 420.00 | H114: 1 | I114: 100.00 | L114: 100.00
A115: 111 | B115: 五金库
A116: 112 | B116: 电脑桌 | C116: 张 | D116: 2 | E116: 150.00 | H116: 2 | I116: 0.00 | L116: 0.00
A117: 113 | B117: 铁质档案柜 | C117: 组 | D117: 1 | E117: 420.00 | H117: 1 | I117: 100.00 | L117: 100.00
A118: 114 | B118: 门卫室(东)
A119: 115 | B119: 电脑桌 | C119: 张 | D119: 1 | E119: 75.00 | H119: 1 | I119: 0.00 | L119: 0.00 | N119: 已坏
A120: 116 | B120: 合计 | L120: 3,385.00
A121: 填表人：董学斌 | D121: 填表日期：2018年4月3日 | I121: 评估人员：崔国忠、马海燕

Sheet 固定资产清查评估汇总表
A1: 固定资产清查评估汇总表
A2: 被评估单位名称:蚌埠市城市投资控股有限公司 评估基准日：2018年4月3日 | K2: 金额单位：人民币元
A3: 序号 | B3: 科目名称 | C3: 账面价值 | E3: 调增后账面值 | G3: 评估价值 | I3: 增值额 | K3: 增值率%
A4: 号 | C4: 原值 | D4: 净值 | E4: 原值 | F4: 净值 | G4: 原值 | H4: 净值 | I4: 原值 | J4: 净值 | K4: 原值 | L4: 净值
A5: 1 | B5: 房屋建筑物 类合计 | C5: =C6+C7 -> 23,523,275.00 | D5: 12,935,802.57 | E5: 23,523,275.00 | F5: 12,935,802.57 | G5: 18,094,826.92 | H5: 1,461,410.28 | I5: =G5-E5 -> -5,428,448.08 | J5: =H5-F5 -> -11,474,392.29
A6: 2 | B6: 房屋建筑物 | I6: 0 | J6: 0
A7: 3 | B7: 构筑物及其 他辅助设备 | C7: 23,523,275.00 | D7: 12,935,802.57 | E7: 23,523,275.00 | F7: 12,935,802.57 | G7: 18,094,826.92 | H7: 1,461,410.28 | I7: -5,428,448.08 | J7: -11,474,392.29 | K7: =I7/E7*100 -> -23.08 | L7: =J7/F7*100 -> -88.70
A8: 5 | B8: 设备类合计 | C8: 109,834,860.00 | D8: 44,070,337.88 | E8: 109,834,860.00 | F8: 44,070,337.88 | G8: 76,187,570.60 | H8: 8,238,242.09 | I8: =G8-C8 -> -33,647,289.40 | J8: =H8-D8 -> -35,832,095.79 | K8: -30.63 | L8: -81.31
A9: 6 | B9: 机器设备 | C9: 109,450,460.00 | D9: 43,929,109.50 | E9: 109,450,460.00 | F9: 43,929,109.50 | G9: 75,891,049.23 | H9: 8,202,893.62 | I9: -33,559,410.77 | J9: -35,726,215.88 | K9: -30.66 | L9: -81.33
A10: 7 | B10: 车辆 | C10: 48,000.00 | D10: 36,000.00 | E10: 48,000.00 | F10: 36,000.00 | G10: 9,000.00 | H10: 9,000.00 | I10: -39,000.00 | J10: -27,000.00 | K10: -81.25 | L10: -75.00
A11: 8 | B11: 电子设备 | C11: 336,400.00 | D11: 105,228.38 | E11: 336,400.00 | F11: 105,228.38 | G11: 287,521.37 | H11: 26,348.46 | I11: -48,878.63 | J11: -78,879.92 | K11: -14.53 | L11: -74.96
A12: 9 | B12: 工程物资 | I12: 0 | J12: 0
A13: 10 | B13: 在建工程合计 | I13: 0 | J13: 0
A14: 11 | B14: 土建工程 | I14: 0 | J14: 0
A15: 12 | B15: 设备安装工程 | I15: 0 | J15: 0
A16: 13 | B16: 固定资产清理 | I16: 0 | J16: 0
A17: 14 | B17: 待处理固定 资产净损失 | I17: 0 | J17: 0
B18: 固定资产合计 | C18: =C5+C8 -> 133,358,135.00 | D18: 57,006,140.45 | E18: 133,358,135.00 | F18: 57,006,140.45 | G18: 94,282,397.52 | H18: 9,699,652.36 | I18: -39,075,737.48 | J18: -47,306,488.09 | K18: =I18/E18*100 -> -29.30 | L18: =J18/F18*100 -> -82.98
A19: 填表人：董学斌 | C19: 填表日期：2018年4月3日 | H19: 评估人员：崔国忠、马海燕

Sheet 固定资产--构筑物及其他辅助设施清查评估明细表
A1: 固定资产--构筑物及其他辅助设施清查评估明细表
A2: 被评估单位名称:蚌埠市城市投资控股有限公司 | G2: 评估基准日：2018年4月3日 | K2: 金额单位：人民币元
A3: 序号 | B3: 名称 | C3: 结 构 | D3: 建成 年月 | E3: 长度 (m) | F3: 宽度 （m) | G3: 数量 | H3: 帐面价值 | J3: 评估价值 | O3: 增值率 % | P3: 备注
E4: （M) | F4: （M) | G4: （M) | H4: 原值 | I4: 净值 | J4: 原值 | K4: 成新率% | L4: 拆除率% | M4: 变现率% | N4: 净值 | O4: %
A5: 1 | B5: 300T油罐 | D5: 2003 | E5: 直径8.9米 高12米 | G5: 3个 | H5: 1,030,340.00 | I5: 579,566.25 | J5: =H5*0.9/1.17 -> 792,569.23 | K5: 18 | L5: 8 | M5: 90 | N5: =J5*(K5-L5)*0.8/100 -> 63,405.54 | P5: 精炼车间
A6: 2 | B6: 简仓 | D6: 2004 | E6: 直径15米 高17.7米 | G6: 1个 | H6: 745,390.00 | I6: 419,281.88 | J6: 573,376.92 | K6: 18 | L6: 8 | M6: 90 | N6: 45,870.15
A7: 3 | B7: 简仓 | D7: 2004 | E7: 直径23米 高20.5米 | G7: 10个 | H7: 11,905,470.00 | I7: 6,696,826.88 | J7: 9,158,053.85 | K7: 18 | L7: 8 | M7: 90 | N7: 732,644.31
A8: 4 | B8: 避雷塔 | D8: 2004 | G8: 4个 | H8: 102,110.00 | I8: 61,266.00 | J8: 78,546.15 | K8: 40 | L8: 8 | M8: 90 | N8: 20,107.82
A9: 5 | B9: 钢板房 | C9: 钢板 | D9: 2004 | G9: 18 | H9: 60,665.00 | I9: 34,124.06 | J9: 46,665.38 | K9: 18 | L9: 8 | M9: 90 | N9: 3,733.23
A10: 8 | B10: 10000T油罐 | D10: 2003 | E10: 直径31.7米 高16.6米 | G10: 2个 | H10: 4,700,000.00 | I10: 2,643,750.00 | J10: 3,615,384.62 | K10: 18 | L10: 8 | M10: 90 | N10: 289,230.77
A11: 9 | B11: 5000T油罐 | D11: 2003 | E11: 直径20米 高17米 | G11: 2个 | H11: 2,420,000.00 | I11: 1,361,250.00 | J11: 1,861,538.46 | K11: 18 | L11: 8 | M11: 90 | N11: 148,923.08
A12: 10 | B12: 3000T油罐 | D12: 2003 | E12: 直径17.2米 高16.55米 | G12: 1个 | H12: 960,000.00 | I12: 540,000.00 | J12: 738,461.54 | K12: 18 | L12: 8 | M12: 90 | N12: 59,076.92
A13: 11 | B13: 500T油罐 | E13: 直径8.85米 高12.2米 | G13: 1个 | H13: 293,900.00 | I13: 110,212.50 | J13: 226,076.92 | K13: 18 | L13: 8 | M13: 90 | N13: 18,086.15 | P13: 色拉油厂
A14: 12 | B14: 800T油罐 | E14: 直径11.88米 高12.2米 | G14: 1个 | H14: 421,800.00 | I14: 158,175.00 | J14: 324,461.54 | K14: 18 | L14: 8 | M14: 90 | N14: 25,956.92 | P14: 色拉油厂
A15: 13 | B15: 80T色拉油罐 | E15: 直径5.3米 高5米 | H15: 94,000.00 | I15: 35,250.00 | J15: 72,307.69 | K15: 18 | L15: 8 | M15: 90 | N15: 5,784.62 | P15: 色拉油厂
A16: 16 | B16: 1500T油罐 | E16: 直径13.8米 高15米 | G16: 1个 | H16: 587,200.00 | I16: 220,200.00 | J16: 451,692.31 | K16: 18 | L16: 8 | M16: 90 | N16: 36,135.38 | P16: 铸锻厂
A17: 17 | B17: 300T油罐 | E17: 直径8.1米 高9米 | G17: 1个 | H17: 202,400.00 | I17: 75,900.00 | J17: 155,692.31 | K17: 18 | L17: 8 | M17: 90 | N17: 12,455.38 | P17: 铸锻厂
B18: 合计 | H18: =SUM(H5:H17) -> 23,523,275.00 | I18: 12,935,802.57 | J18: 18,094,826.92 | N18: =SUM(N5:N17) -> 1,461,410.28
A19: 填表人：董学斌 | G19: 填表日期：2018年4月3日 | J19: 评估人员：崔国忠、马海燕

Sheet 固定资产--机器设备清查评估明细表
A1: 固定资产--机器设备清查评估明细表
A2: 被评估单位名称:蚌埠市城市投资控股有限公司 | F2: 评估基准日：2018年4月3日 | K2: 金额单位：人民币元
A3: 序号 | B3: 设备 名称 | C3: 规格 型号 | D3: 生产 厂家 | E3: 启用 日期 | F3: 计量单位 | G3: 数 量 | H3: 帐面价值 | J3: 评估价值 | O3: 增值率% | P3: 备注
B4: 名称 | C4: 型号 | D4: 厂家 | E4: 日期 | H4: 原值 | I4: 净值 | J4: 原值 | K4: 成新率% | L4: 拆除费率% | M4: 变现率% | N4: 净值
A5: 1 | B5: 1000吨
A6: 2 | B6: 预榨生产线 | C6: 1000T/D | D6: 河北南皮机械 制造公司等 | E6: 2001 | F6: 条 | G6: 1 | H6: 14,600,000.00 | I6: 4927500.00 | J6: =H6*0.81/1.17 -> 10,107,692.31 | K6: 18 | L6: 6 | M6: 90 | N6: =IF(H6="","",J6*(K6-L6)*0.9/100) -> 1091630.77
A7: 3 | B7: 浸出生产线 | C7: 800T/D | D7: 营口万达石化 设备公司等 | E7: 2001 | F7: 条 | G7: 1 | H7: 11,000,000.00 | I7: 2475000.00 | J7: 7,615,384.62 | K7: 18 | L7: 6 | M7: 90 | N7: 822461.54
A8: 4 | B8: 精炼生产线 | C8: 300T/D | D8: 三门峡油脂 机械公司等 | E8: 2001 | F8: 条 | G8: 1 | H8: 7,000,000.00 | I8: 2362500.00 | J8: 4,846,153.85 | K8: 18 | L8: 6 | M8: 90 | N8: 523384.62
A9: 5 | B9: 锅炉设备 | C9: SZL-10-A-LL | D9: 蚌埠锅炉厂等 | E9: 2001 | F9: 套 | G9: 4 | H9: 6,000,000.00 | I9: 2250000.00 | J9: 4,153,846.15 | K9: 18 | L9: 6 | M9: 90 | N9: 448615.38
A10: 6 | B10: 棉籽脱绒生产线 | C10: 500T/D | D10: 山东天鹅棉业 机械公司等 | E10: 2003 | F10: 条 | G10: 1 | H10: 3,450,000.00 | I10: 1423125.00 | J10: 2,388,461.54 | K10: 18 | L10: 6 | M10: 90 | N10: 257953.85
A11: 7 | B11: 棉籽剥壳生产线 | C11: 1200T/D | D11: 庄河轧辊厂等 | E11: 2002 | F11: 条 | G11: 1 | H11: 1,800,000.00 | I11: 742500.00 | J11: 1,246,153.85 | K11: 18 | L11: 6 | M11: 90 | N11: 134584.62
A12: 8 | B12: 烘干生产线 | D12: 靖江大地机械 有限公司等 | E12: 2003 | G12: 1 | H12: 2,000,000.00 | I12: 750000.00 | J12: 1,384,615.38 | K12: 18 | L12: 6 | M12: 90 | N12: 149538.46
A13: 9 | B13: 供电系统 | C13: 35千伏 | D13: 蚌埠恒泰 有限公司 | E13: 2001 | G13: 1 | H13: 7,600,000.00 | I13: 3135000.00 | J13: 5,261,538.46 | K13: 18 | L13: 6 | M13: 90 | N13: 568246.15
A14: 10 | B14: 粕库
A15: 11 | B15: 电脑自动称 | C15: LCS-65 | D15: 无锡 | E15: 2002 | F15: 台 | G15: 3 | H15: 126,000.00 | I15: 42.525.00 | J15: =H15*0.81/1.17 -> 87,230.77 | K15: 18 | L15: 6 | M15: 90 | N15: 9420.92
A16: 12 | B16: 固定式定量包装秤 | C16: LCS-65 | D16: 无锡东梁 | E16: 2003 | F16: 台 | G16: 2 | H16: 84,000.00 | I16: 28350.00 | J16: 58,153.85 | K16: 18 | L16: 6 | M16: 90 | N16: 6280.62
A17: 13 | B17: 存料箱 | F17: 台 | G17: 1 | H17: 1,800.00 | I17: 607.50 | J17: 1,246.15 | K17: 18 | L17: 6 | M17: 90 | N17: 134.58
A18: 14 | B18: 空压机 | E18: 2002 | F18: 台 | G18: 2 | H18: 4,000.00 | I18: 3000.00 | J18: 2,769.23 | K18: 18 | M18: 90 | N18: 448.62
A19: 15 | B19: 维修车间
A20: 16 | B20: 液压泵站 | F20: 台 | G20: 1 | H20: 6,500.00 | I20: 1950.00 | J20: =H20*0.81/1.17 -> 4,500.00 | K20: 18 | L20: 6 | M20: 90 | N20: 486.00
A21: 17 | B21: 手动单轨小车 | F21: 台 | G21: 1 | H21: 560.00 | I21: 252.00 | J21: 387.69 | K21: 18 | L21: 6 | M21: 90 | N21: 41.87
A22: 18 | B22: 砂轮机 | C22: MQ3225 | F22: 台 | G22: 1 | H22: 1,100.00 | I22: 412,50 | J22: 761.54 | K22: 18 | L22: 6 | M22: 90 | N22: 82.25
A23: 19 | B23: 液压拉丝机 | C23: JYL2000 | D23: 庄河轧辊厂 | E23: 2004 | F23: 台 | G23: 1 | H23: 315,000.00 | I23: 153562.50 | J23: 218,076.92 | K23: 18 | L23: 6 | M23: 90 | N23: =IF(H23="","",J23*(K23-L23)*0.9/100) -> 23552.31
A24: 20 | B24: 其他资产
A25: 21 | B25: 皮带输送机 | C25: 18米 | E25: 2002 | F25: 台 | G25: 2 | H25: 39,600.00 | I25: 7425.00 | J25: =H25/1.17 -> 33,846.15 | K25: 15 | M25: 90 | N25: 4569.23
A26: 22 | B26: 皮带输送机 | C26: 8米 | E26: 2002 | F26: 台 | G26: 1 | H26: 8,800.00 | I26: 1980.00 | J26: 7,521.37 | K26: 15 | M26: 90 | N26: 1015.38
A27: 23 | B27: 皮带输送机 | C27: 10米 | E27: 2002 | F27: 台 | G27: 2 | H27: 22,000.00 | I27: 4125.00 | J27: 18,803.42 | K27: 15 | M27: 90 | N27: 2538.46
A28: 24 | B28: 皮带输送机 | C28: 12米 | E28: 2002 | F28: 台 | G28: 7 | H28: 92,400.00 | I28: 17325.00 | J28: 78,974.36 | K28: 15 | M28: 90 | N28: 10661.54
A29: 25 | B29: 皮带输送机 | C29: 20米 | E29: 2002 | F29: 台 | G29: 1 | H29: 22,000.00 | I29: 4125.00 | J29: 18,803.42 | K29: 15 | M29: 90 | N29: 2538.46
A30: 26 | B30: 电子汽车衡 | C30: 100吨 | F30: 台 | G30: 1 | H30: 146,000.00 | I30: 65700.00 | J30: 124,786.32 | K30: 20 | L30: 6 | M30: 90 | N30: 15723.08
A31: 27 | B31: 3000吨
A32: 28 | B32: 清理生产线 | C32: 3000T/D | D32: 江苏正昌等 | E32: 2004 | F32: 套 | G32: 1 | H32: 4,800,000.00 | I32: 2340000.00 | J32: =H32*0.81/1.17 -> 3,323,076.92 | K32: 18 | L32: 6 | M32: 90 | N32: 358892.31
A33: 29 | B33: 预榨生产线 | C33: 3000T/D | D33: 大连宝峰机器 制造公司等 | E33: 2004 | F33: 套 | G33: 1 | H33: 20,400,000.00 | I33: 9945000.00 | J33: 14,123,076.92 | K33: 18 | L33: 6 | M33: 90 | N33: 1525292.31
A34: 30 | B34: 浸出生产线 | C34: 2500T/D | D34: 武汉友谊食品 工程有限公司等 | E34: 2004 | F34: 套 | G34: 1 | H34: 22,000,000.00 | I34: 9075000.00 | J34: 15,230,769.23 | K34: 18 | L34: 6 | M34: 90 | N34: 1644923.08
A35: 31 | B35: 供电系统 | E35: 2004 | F35: 套 | G35: 2 | H35: 2,370,000.00 | I35: 1244250.00 | J35: 1,640,769.23 | K35: 18 | L35: 6 | M35: 90 | N35: 177203.08
A36: 32 | B36: 锅炉设备
A37: 33 | B37: 有机热载体炉设备 | C37: YLM-9300M | D37: 常州综研加热 炉有限公司等 | E37: 2004 | F37: 套 | H37: 3,750,000.00 | I37: 1968750.00 | J37: =H37*0.81/1.17 -> 2,596,153.85 | K37: 18 | L37: 6 | M37: 90 | N37: 280384.62
A38: 34 | B38: 粕库
A39: 35 | B39: 除尘风机 | F39: 台 | G39: 2 | H39: 74,000.00 | I39: 36075.00 | J39: 51,230.77 | K39: 18 | L39: 6 | M39: 90 | N39: 5532.92
A40: 36 | B40: 盛料斗 | F40: 个 | G40: 6 | H40: 15,000.00 | I40: 7312.50 | J40: 10,384.62 | K40: 18 | L40: 6 | M40: 90 | N40: 1121.54
A41: 37 | B41: 电脑称 | C41: DCS65 | D41: 无锡瑞利公司 | E41: 2004 | F41: 台 | G41: 8 | H41: 336,000.00 | I41: 138600.00 | J41: 232,615.38 | K41: 18 | L41: 6 | M41: 90 | N41: 25122.46
A42: 38 | B42: 定量包装秤 | C42: SDBY-I | D42: 栗阳正昌电控 设备有效公司 | F42: 台 | G42: 1 | H42: 38,000.00 | I42: 15675.00 | J42: 26,307.69 | K42: 18 | L42: 6 | M42: 90 | N42: 2841.23
A43: 39 | B43: 刮板 | C43: 500型 | E43: 2004 | F43: 台 | G43: 3 | H43: 504,000.00 | I43: 245700.00 | J43: =H43*0.81/1.17 -> 348,923.08 | K43: 18 | L43: 6 | M43: 90 | N43: =IF(H43="","",J43*(K43-L43)*0.9/100) -> 37683.69
A44: 41 | B44: 有机热载体加热炉 | C44: YLL-700MA | D44: 常州新区能源 设备厂 | E44: 2000 | F44: 套 | G44: 1 | H44: 154,000.00 | I44: 46,200.00 | J44: 106,615.38 | K44: 18 | L44: 6 | M44: 90 | N44: 11514.46
A45: 42 | B45: 锅炉 | C45: 4吨 | D45: 蚌埠锅炉厂 | E45: 2000 | F45: 套 | G45: 1 | H45: 296,000.00 | I45: 88,800.00 | J45: 204,923.08 | K45: 18 | L45: 6 | M45: 90 | N45: 22131.69
A46: 43 | B46: 电子汽车衡 | C46: 30吨 | D46: 蚌埠恒器厂 | F46: 台 | G46: 1 | H46: 65,000.00 | I46: 292,500 | J46: =H46/1.17 -> 55,555.56 | K46: 18 | L46: 6 | M46: 90 | N46: 6000.00
A47: 44 | B47: 电子汽车衡 | C47: 150吨 | F47: 台 | G47: 1 | H47: 176,000.00 | I47: 39,600.00 | J47: 150,427.35 | K47: 18 | L47: 6 | M47: 90 | N47: 16246.15
A48: 45 | B48: 输油管道 | C48: 2000米 | E48: 2007 | F48: 条 | G48: 1 | H48: 152,700.00 | I48: 91,620.00 | J48: 130,512.82 | K48: 18 | L48: 6 | M48: 90 | N48: 14095.38
A49: 46 | B49: 合计 | H49: =SUM(H6:H48) -> 109,450,460.00 | I49: =SUM(I6:I48) -> 43,929,109.50 | J49: =SUM(J6:J48) -> 75,891,049.23 | N49: =SUM(N6:N48) -> 8,202,893.62
A50: 填表人：董学斌 | E50: 填表日期：2018年4月3日 | J50: 评估人员：崔国忠、马海燕

Sheet 固定资产--电子设备清查评估明细表
A1: 固定资产--电子设备清查评估明细表
A2: 被评估单位名称:蚌埠市城市投资控股有限公司 | H2: 评估基准日：2018年4月3日 | L2: 金额单位：人民币元
A3: 序号 | B3: 设备名称 | C3: 规格型号 | D3: 生产厂家 | E3: 启用日期 | F3: 计量单位 | G3: 数 量 | H3: 帐面价值 | J3: 实盘数量 | K3: 评估价值 | O3: 增值率% | P3: 备注
A4: 号 | D4: 厂家 | E4: 日期 | F4: 单位 | H4: 原值 | I4: 净值 | K4: 原值 | L4: 成新率% | M4: 变现率% | N4: 净值
A5: 1 | B5: 监控室 | K5: =IF(H5="","",H5/1.17) ->  | N5: =IF(K5="","",K5*L5*M5/100) -> 
A6: 2 | B6: 柜式空调 | C6: KFR-50LW | D6: 格兰仕公司 | E6: 2004 | F6: 台 | H6: 3700.00 | I6: 1248.75 | J6: 1 | K6: 3162.39 | L6: 10 | M6: 90 | N6: =IF(K6="","",K6*L6*M6/10000) -> 284.62
A7: 3 | B7: 监控设备 | E7: 2005 | F7: 套 | H7: 105000.00 | I7: 47250.00 | J7: 1 | K7: 89743.59 | L7: 10 | M7: 90 | N7: 8,076.92
A8: 4 | B8: 办公室 （南）
A9: 5 | B9: 壁挂空调 | C9: KFR-32G | D9: 小天鹅波尔卡 | E9: 2001 | F9: 台 | H9: 1720.00 | I9: 193.50 | J9: 1 | K9: 1470.09 | L9: 10 | M9: 90 | N9: 132.31
A10: 5 | B10: 生产部
A11: 7 | B11: 壁挂空调 | C11: 小绿洲KFR-32G | D11: 格力公司 | E11: 2006 | F11: 台 | H11: 1980.00 | I11: 965.25 | J11: 1 | K11: 1692.31 | L11: 10 | M11: 90 | N11: 152.31
A12: 8 | B12: 一楼会议室
A13: 9 | B13: 柜式空调 | C13: KFR-63-LW | D13: 格兰仕公司 | E13: 2004 | F13: 台 | H13: 4460.00 | I13: 1505.25 | J13: 1 | K13: 3811.97 | L13: 10 | M13: 90 | N13: 343.08
A14: 10 | B14: 财务结算室
A15: 11 | B15: 柜式空调 | C15: KFR-60-LW/E | D15: 格力公司 | E15: 2006 | F15: 台 | H15: 5800.00 | I15: 2827.50 | J15: 1 | K15: 4957.26 | L15: 10 | M15: 90 | N15: 446.15
A16: 12 | B16: 打印机 | C16: KX-P1121 | D16: 松下公司 | E16: 2006 | F16: 台 | H16: 1400.00 | I16: 420.00 | J16: 1 | K16: 1196.58 | L16: 10 | M16: 90 | N16: 107.69
A17: 13 | B17: 油销售室 | J17: 1
A18: 14 | B18: 柜式空调 | C18: KFR-60-LW/E | D18: 格力公司 | E18: 2006 | F18: 台 | H18: 5800.00 | I18: 2827.50 | J18: 1 | K18: 4957.26 | L18: 10 | M18: 90 | N18: 446.15
A19: 15 | B19: 化验室
A20: 16 | B20: 柜式空调 | C20: KFR-60-LW/E | D20: 格力公司 | E20: 2006 | F20: 台 | H20: 11600.00 | I20: 5655.00 | J20: 1 | K20: 9914.53 | L20: 10 | M20: 90 | N20: 892.31
A21: 17 | B21: 冰箱 | C21: BCD-188K/A | D21: 海尔公司 | E21: 2007 | F21: 台 | H21: 2230.00 | I21: 1338.00 | J21: 1 | K21: 1905.98 | L21: 20 | M21: 90 | N21: 343.08
A22: 18 | B22: 物管部
A23: 19 | B23: 柜式空调 | C23: KFR-60-LW/E | D23: 格力公司 | E23: 2006 | F23: 台 | H23: 5800.00 | I23: 2827.50 | J23: 1 | K23: 4957.26 | L23: 10 | M23: 90 | N23: 446.15
A24: 序号 | B24: 设备名称 | C24: 规格型号 | D24: 生产厂家 | E24: 启用日期 | F24: 计量单位 | G24: 数 量 | H24: 帐面价值 | J24: 实盘数量 | K24: 评估价值 | O24: 增值率% | P24: 备注
D25: 厂家 | E25: 日期 | F25: 单位 | H25: 原值 | I25: 净值 | K25: 原值 | L25: 成新率% | M25: 变现率% | N25: 净值
A26: 20 | B26: 司机部 | K26: =IF(H26="","",H26/1.17) ->  | N26: =IF(K26="","",K26*L26*M26/10000) -> 
A27: 21 | B27: 壁挂空调 | C27: 小绿洲KFR-32G | D27: 格力公司 | E27: 2006 | F27: 台 | H27: 1980.00 | I27: 965.25 | J27: 1 | K27: 1692.31 | L27: 10 | M27: 90 | N27: 152.31
A28: 22 | B28: 接待室
A29: 23 | B29: 柜式空调 | C29: KFR-63-LW/E | D29: 格力公司 | E29: 2006 | F29: 台 | H29: 5,800.00 | I29: 2,827.50 | J29: 1 | K29: 4957.26 | L29: 10 | M29: 90 | N29: 446.15
A30: 24 | B30: 总经理室
A31: 25 | B31: 柜式空调 | C31: KFR-60-LW/E | D31: 格力公司 | E31: 2006 | F31: 台 | H31: 5,800.00 | I31: 2,827.50 | J31: 1 | K31: 4957.26 | L31: 10 | M31: 90 | N31: 446.15
A32: 26 | B32: 办公室（北）
A33: 27 | B33: 传真机 | C33: FO-78CN | D33: 夏普公司 | E33: 2006 | F33: 台 | H33: 900.00 | I33: 405.00 | J33: 1 | K33: 769.23 | L33: 10 | M33: 90 | N33: 69.23
A34: 28 | B34: 打印机 | C34: 1022N | D34: 夏普公司 | E34: 2006 | F34: 台 | H34: 1,650.00 | I34: 495.00 | J34: 1 | K34: 1410.26 | L34: 10 | M34: 90 | N34: 126.92
A35: 29 | B35: 壁挂空调 | C35: 小绿洲KFR-32G | D35: 格力公司 | E35: 2006 | F35: 台 | H35: 1,980.00 | I35: 965.00 | J35: 1 | K35: 1692.31 | L35: 10 | M35: 90 | N35: 152.31
A36: 30 | B36: 副总经理室（北）
A37: 31 | B37: 柜式空调 | C37: KFR-60-LW/E | D37: 格力公司 | E37: 2006 | F37: 台 | H37: 5,800.00 | I37: 2,827.50 | J37: 1 | K37: 4957.26 | L37: 10 | M37: 90 | N37: 446.15
A38: 32 | B38: 壁挂空调 | C38: KFR-35GW | D38: 格兰仕公司 | E38: 2006 | F38: 台 | H38: 1,750.00 | I38: 853.13 | J38: 1 | K38: 1495.73 | L38: 10 | M38: 90 | N38: 134.62
A39: 33 | B39: 财务科
A40: 34 | B40: 柜式空调 | C40: KFR-60-LW/E | D40: 格力公司 | E40: 2006 | F40: 台 | H40: 5,800.00 | I40: 2,827.50 | J40: 1 | K40: 4957.26 | L40: 10 | M40: 90 | N40: 446.15
A41: 35 | B41: 财务总监室
A42: 36 | B42: 柜式空调 | C42: KFR-60-LW/E | D42: 格力公司 | E42: 2006 | F42: 台 | H42: 5,800.00 | I42: 2,827.50 | J42: 1 | K42: 4957.26 | L42: 10 | M42: 90 | N42: 446.15
A43: 37 | B43: 副总经理室（中）
A44: 38 | B44: 柜式空调 | C44: KFR-60-LW/E | D44: 格力公司 | E44: 2006 | F44: 台 | H44: 5,800.00 | I44: 2,827.50 | J44: 1 | K44: 4957.26 | L44: 10 | M44: 90 | N44: 446.15
A45: 39 | B45: 副总经理室（南）
A46: 40 | B46: 柜式空调 | C46: KFR-60-LW/E | D46: 格力公司 | E46: 2006 | F46: 台 | H46: 5,800.00 | I46: 2,827.50 | J46: 1 | K46: 4957.26 | L46: 10 | M46: 90 | N46: 446.15
A47: 序号 | B47: 设备名称 | C47: 规格型号 | D47: 生产厂家 | E47: 启用日期 | F47: 计量单位 | G47: 数 量 | H47: 帐面价值 | J47: 实盘数量 | K47: 评估价值 | O47: 增值率% | P47: 备注
D48: 厂家 | E48: 日期 | F48: 单位 | H48: 原值 | I48: 净值 | K48: 原值 | L48: 成新率% | M48: 变现率% | N48: 净值
A49: 41 | B49: 台式电脑 | C49: 4XGF12X | D49: 戴尔公司 | E49: 2006 | F49: 台 | H49: 3,800.00 | I49: 2,827.50 | J49: 1 | K49: =IF(H49="","",H49/1.17) -> 3247.86 | L49: 5 | M49: 90 | N49: =IF(K49="","",K49*L49*M49/10000) -> 146.15
A50: 42 | B50: 磅房
A51: 43 | B51: 壁挂空调 | C51: 小绿洲KFR-32G | D51: 格力公司 | E51: 2006 | F51: 台 | H51: 5,940.00 | I51: 2895.75 | J51: 3 | K51: 5076.92 | L51: 10 | M51: 90 | N51: 456.92
A52: 44 | B52: 壁挂空调 | C52: KFR-32G | D52: 小天鹅波尔卡 | E52: 2001 | F52: 台 | H52: 1,720.00 | I52: 193.50 | J52: 1 | K52: 1470.09 | L52: 10 | M52: 90 | N52: 132.31
A53: 45 | B53: 客户休息室
A54: 46 | B54: 柜式空调 | C54: KFR-60-LW/E | D54: 格力公司 | E54: 2006 | F54: 台 | H54: 5,800.00 | I54: 2827.50 | J54: 1 | K54: 4957.26 | L54: 10 | M54: 90 | N54: 446.15
A55: 47 | B55: 五金库
A56: 48 | B56: 柜式空调 | C56: KFR-60-LW/E | D56: 格力公司 | E56: 2007 | F56: 台 | H56: 5,800.00 | I56: 3262.50 | J56: 1 | K56: 4957.26 | L56: 20 | M56: 90 | N56: 892.31
A57: 49 | B57: 1000吨 配电房
A58: 50 | B58: 柜式空调 | C58: KFR-120G | D58: 小天鹅波尔卡 | H58: 9,000.00 | I58: 2700.00 | J58: 1 | K58: 7692.31 | L58: 10 | M58: 90 | N58: 692.31
A59: 51 | B59: 化验室
A60: 52 | B60: 马弗炉 | F60: 台 | H60: 3,500.00 | I60: 2231.50 | J60: 1 | K60: 2991.45 | L60: 10 | M60: 90 | N60: 269.23
A61: 53 | B61: 电热恒温 干燥箱 | C61: 202型 | F61: 台 | H61: 1,520.00 | I61: 969.00 | J61: 1 | K61: 1299.15 | L61: 10 | M61: 90 | N61: 116.92
A62: 54 | B62: 自动恒温 控制台 | C62: TDWSX2 | F62: 台 | H62: 2,800.00 | I62: 1470.00 | J62: 1 | K62: 2393.16 | L62: 10 | M62: 90 | N62: 215.38
A63: 55 | B63: 电热恒温 干燥箱 | C63: GZX-DH | F63: 台 | H63: 2,300.00 | I63: 1466.25 | J63: 1 | K63: 1965.81 | L63: 10 | M63: 90 | N63: 176.92
A64: 56 | B64: 数显恒温 水浴器 | C64: HH-6 | F64: 台 | H64: 1,960.00 | I64: 1029.00 | J64: 2 | K64: 1675.21 | L64: 10 | M64: 90 | N64: 150.77
A65: 57 | B65: 架盘药物天平 | C65: JYT-5 | F65: 台 | H65: 900.00 | I65: 472.50 | J65: 6 | K65: 769.23 | L65: 10 | M65: 90 | N65: 69.23
A66: 58 | B66: 磁力加热 搅拌器 | C66: 78-1 | F66: 台 | H66: 350.00 | I66: 183.75 | J66: 1 | K66: 299.15 | L66: 10 | M66: 90 | N66: 26.92
A67: 59 | B67: 水分测定仪 | C67: LDS-LA | F67: 台 | H67: 7,800.00 | I67: 4095.00 | J67: 4 | K67: 6666.67 | L67: 10 | M67: 90 | N67: 600.00
A68: 60 | B68: 电动离心机 | C68: 80-2 | F68: 台 | H68: 680.00 | I68: 357.00 | J68: 1 | K68: 581.20 | L68: 10 | M68: 90 | N68: 52.31
A69: 61 | B69: 四两装中药材 粉碎机 | C69: DG120 | F69: 台 | H69: 520.00 | I69: 273.00 | J69: 1 | K69: 444.44 | L69: 10 | M69: 90 | N69: 40.00
A70: 序号 | B70: 设备名称 | C70: 规格型号 | D70: 生产厂家 | E70: 启用日期 | F70: 计量单位 | G70: 数 量 | H70: 帐面价值 | J70: 实盘数量 | K70: 评估价值 | O70: 增值率% | P70: 备注
D71: 厂家 | E71: 日期 | F71: 单位 | H71: 原值 | I71: 净值 | K71: 原值 | L71: 成新率% | M71: 变现率% | N71: 净值
A72: 62 | B72: 磁力加热搅拌器 | C72: 78-1A | F72: 台 | H72: 340.00 | I72: 178.50 | J72: 1 | K72: =IF(H72="","",H72/1.17) -> 290.60 | L72: 10 | M72: 90 | N72: =IF(K72="","",K72*L72*M72/10000) -> 26.15
A73: 63 | B73: 不锈钢电热 蒸馏水器 | C73: YAZD | F73: 台 | H73: 910.00 | I73: 477.75 | J73: 1 | K73: 777.78 | L73: 10 | M73: 90 | N73: 70.00
A74: 64 | B74: 循环水真空泵 | C74: SHZ-III | F74: 台 | H74: 800.00 | I74: 420.00 | J74: 1 | K74: 683.76 | L74: 10 | M74: 90 | N74: 61.54
A75: 65 | B75: 石油产品 蒸馏试验器 | C75: SYP2001-1 | E75: 2001 | F75: 台 | H75: 1,950.00 | I75: 731.25 | J75: 1 | K75: 1666.67 | L75: 10 | M75: 90 | N75: 150.00
A76: 66 | B76: 电子天平 | C76: JA2003 | E76: 2002 | F76: 台 | H76: 2,300.00 | I76: 948.75 | J76: 1 | K76: 1965.81 | L76: 10 | M76: 90 | N76: 176.92
A77: 67 | B77: 电子万用炉 | C77: 1000W | F77: 台 | H77: 720.00 | I77: 270.00 | J77: 8 | K77: 615.38 | L77: 10 | M77: 90 | N77: 55.38
A78: 68 | B78: 核磁共振 含油量测量仪 | C78: HCY-10 | E78: 2004 | F78: 台 | H78: 28,000.00 | I78: 10500.00 | J78: 1 | K78: 23931.62 | L78: 10 | M78: 90 | N78: 2,153.85
A79: 69 | B79: 分析天平 | C79: TG328A | E79: 2000 | F79: 台 | H79: 5,010.00 | I79: 1503.00 | J79: 3 | K79: 4282.05 | L79: 10 | M79: 90 | N79: 385.38
A80: 70 | B80: 比较测色仪 | C80: WSL-2 | E80: 2007 | F80: 台 | H80: 4,000.00 | I80: 2550.00 | J80: 1 | K80: 3418.80 | L80: 10 | M80: 90 | N80: 307.69
A81: 71 | B81: 氧气瓶 | F81: 台 | H81: 2,700.00 | I81: 1012.50 | J81: 3 | K81: 2307.69 | L81: 10 | M81: 90 | N81: 207.69
A82: 72 | B82: 分样器 | C82: JFYZ | F82: 个 | H82: 750.00 | I82: 281.25 | J82: 1 | K82: 641.03 | L82: 10 | M82: 90 | N82: 57.69
A83: 73 | B83: 干燥器 | F83: 台 | H83: 600.00 | I83: 225.00 | J83: 4 | K83: 512.82 | L83: 10 | M83: 90 | N83: 46.15
A84: 74 | B84: 累磁PH计 | C84: PHS-2F | F84: 个 | H84: 980.00 | I84: 367.50 | J84: 1 | K84: 837.61 | L84: 10 | M84: 90 | N84: 75.38
A85: 75 | B85: 3000吨 配电房
A86: 76 | B86: 柜式空调 | C86: KFR-70LW/E | D86: 海尔公司 | F86: 台 | H86: 12,200.00 | I86: 4575.00 | J86: 2 | K86: 10427.35 | L86: 10 | M86: 90 | N86: 938.46
A87: 77 | B87: 柜式空调 | C87: KFR-70LW/E | D87: 春兰公司 | F87: 台 | H87: 11,400.00 | I87: 4275.00 | J87: 2 | K87: 9743.59 | L87: 10 | M87: 90 | N87: 876.92
A88: 78 | B88: 3000吨浸出 车间
A89: 79 | B89: 柜式空调 | C89: KFR-71LW/E | D89: 华宝公司 | F89: 台 | H89: 11,000.00 | I89: 4125.00 | J89: 2 | K89: 9401.71 | L89: 10 | M89: 90 | N89: 846.15
A90: 合计 | H90: 336,400.00 | I90: 150,228.38 | K90: =SUM(K3:K89) -> 287,521.37 | N90: =SUM(N3:N89) -> 26,348.46
A91: 填表人：董学斌 | E91: 填表日期：2018年4月3日 | K91: 评估人员：崔国忠、马海燕

Sheet 固定资产--机器设备清查评估明细表2
A1: 固定资产--机器设备清查评估明细表
A2: 被评估单位名称:蚌埠市城市投资控股有限公司 | H2: 评估基准日：2018年4月3日 | L2: 金额单位：人民币元
A3: 序号 | B3: 设备 名称 | C3: 规格 型号 | D3: 生产 厂家 | E3: 启用日期 | F3: 计量单位 | G3: 数 量 | H3: 帐面价值 | J3: 评估价值 | O3: 增值率% | P3: 备注
B4: 名称 | C4: 型号 | D4: 厂家 | E4: 日期 | H4: 原值 | I4: 净值 | J4: 原值 | K4: 成新率% | L4: 拆除费率% | M4: 变现率% | N4: 净值
A5: 1 | B5: 东风自卸车 | C5: LZ3111G | D5: 东风汽车公司 | E5: 2004 | F5: 辆 | G5: 3 | H5: 48,000.00 | I5: 36,000.00 | J5: 9,000.00 | N5: 9,000.00
B6: 合计 | H6: 48,000.00 | I6: 36,000.00 | J6: 9,000.00 | N6: =SUM(N5:N5) -> 9,000.00
A7: 填表人：董学斌 | E7: 填表日期：2018年4月3日 | J7: 评估人员：崔国忠、马海燕
